Cogmind - Beta 12 @@@ ROGUE MODE // 2023.11.28 @ 19:29:40 Player: Dosh Result: Self-destructed Performance ------------- Evolutions (2) 1000 Regions Visited (7) 1400 Robots Destroyed (94) 470 Value Destroyed (2854) 2854 Prototype IDs (27) 540 Alien Tech Used (0) 0 Bonus (380) 380 TOTAL SCORE: 6644 Bonus ------- High Alert Combat Kills 80 Aligned with FarCom 300 Cogmind --------- Core Integrity 52/550 Matter 260/300 Energy 415/415 System Corruption 12% Temperature Hot (227) Movement Treading (246) Ox1 Location -8/Materials Parts ------- > --- POWER (2) -------- Deuterium Engine Nuclear Core > --- PROPULSION (3) --- Light Treads Armored Treads Armored Treads > --- UTILITY (4) ------ Cooling System Large Storage Unit Hardened Heavy Armor Plating > --- WEAPON (2) ------- Particle Gun > --- INVENTORY (15) --- Light Deuterium Engine Light Nuclear Core Armored Treads Armored Treads Structural Scanner Hardened Medium Armor Plating Hacking Suite Hacking Suite System Shield Improved Assault Rifle Rocket Launcher Heavy Mace Peak State ------------ > --- POWER ------------ Deuterium Engine Light Nuclear Core > --- PROPULSION ------- Light Treads Armored Treads Armored Treads > --- UTILITY ---------- Large Storage Unit Hardened Medium Armor Plating Shield Generator Hacking Suite > --- WEAPON ----------- YOLO Cannon > --- INVENTORY -------- Deuterium Engine Light Deuterium Engine Light Treads Cooling System Structural Scanner Hardened Medium Armor Plating Hacking Suite Hacking Suite System Shield Improved Assault Rifle Rocket Launcher Heavy Mace [Rating: 45] Favorites ----------- Power Improved Ion Engine Engine Improved Ion Engine Power Core Light Nuclear Core Propulsion Light Treads Treads Light Treads Wheel Wheel Utility Large Storage Unit Device Shield Generator Storage Large Storage Unit Processor Improved Targeting Computer Hackware Hacking Suite Protection Hardened Light Armor Plating Weapon Improved Assault Rifle Energy Gun EM Shotgun Energy Cannon YOLO Cannon Ballistic Gun Improved Assault Rifle Impact Weapon Heavy Mace Build | -11 -10 -10 -9 -9 -9 -8 -8 ------- Run | Jun Mat Min Mat Min Exi Min Mat Slots Evolved 4 | . . . 2 . . . 2 Power 1 | . . . . . . . 1 Propulsion 1 | . . . . . . . 1 Utility 2 | . . . 2 . . . . Weapon . | . . . . . . . . Parts Attached 73 | 7 12 . 20 1 . . 33 Power 12 | 1 1 . 2 . . . 8 Engine 8 | 1 1 . 2 . . . 4 Core 4 | . . . . . . . 4 Reactor . | . . . . . . . . Propulsion 20 | 2 2 . 6 . . . 10 Treads 19 | 2 1 . 6 . . . 10 Leg . | . . . . . . . . Wheel 1 | . 1 . . . . . . Hover . | . . . . . . . . Flight . | . . . . . . . . Utility 22 | 1 4 . 9 . . . 8 Device 3 | . . . . . . . 3 Storage 2 | 1 1 . . . . . . Processor 4 | . 1 . 3 . . . . Hackware 1 | . . . 1 . . . . Protection 12 | . 2 . 5 . . . 5 Artifact . | . . . . . . . . Weapon 19 | 3 5 . 3 1 . . 7 Energy Gun 6 | 2 1 . . 1 . . 2 Energy Cannon 1 | . . . . . . . 1 Ballistic Gun 11 | 1 4 . 3 . . . 3 Ballistic Cannon . | . . . . . . . . Launcher . | . . . . . . . . Special Weapon . | . . . . . . . . Impact Weapon 1 | . . . . . . . 1 Slashing Weapon . | . . . . . . . . Piercing Weapon . | . . . . . . . . Special Melee Weapon . | . . . . . . . . Unidentified Prototypes 2 | . 1 . . . . . 1 Corrupted Parts 1 | . . . . . . . 1 System Corruption 10 | . . . . . . . 10 Parts Lost 15 | . 2 . 1 . . . 12 Power 2 | . . . . . . . 2 Propulsion 5 | . 1 . . . . . 4 Utility 4 | . . . 1 . . . 3 Weapon 4 | . 1 . . . . . 3 Highest Loss Streak 4 | . 1 . 1 . . . 4 To Critical Strikes . | . . . . . . . . Average Slot Usage (%) 96 | . 91 100 99 100 100 100 96 Engine 12 | . 14 14 11 11 11 11 12 Core 1 | . . . . . . . 4 Treads 22 | . 20 14 21 22 22 22 26 Device 2 | . . . . . . . 6 Storage 11 | . 14 14 11 11 11 11 9 Processor 8 | . 5 . 18 11 11 11 1 Hackware 5 | . . . 2 11 11 11 7 Protection 10 | . 8 14 11 11 11 11 9 Energy Gun 2 | . 3 . . 7 11 11 1 Ballistic Gun 18 | . 23 28 21 14 11 11 13 Naked Turns . | . . . . . . . . Heaviest Build 70 | 12 32 32 38 38 38 38 70 Greatest Support 63 | 40 40 10 43 43 43 43 63 Greatest Overweight (x) 10 | . 3 3 10 . . . 1 Average Overweight (x) . | . . 3 . . . . . Largest Inventory Capacity 15 | 8 15 15 15 15 15 15 15 Average Capacity 13 | 6 8 15 15 15 15 15 15 Most Carried 15 | 2 8 9 15 15 15 15 15 Average Carried 12 | 1 6 8 14 15 14 14 14 Final Capacity 15 | 8 15 15 15 15 15 15 15 Final Carried 15 | 2 8 9 15 15 15 15 12 Class Distribution -------------------- 91% | Mutant 8% | Scavenger-Mutant Dominant Class ---------------- Mutant | -10/Materials Mutant | -10/Mines Mutant | -9/Materials Mutant | -9/Mines Mutant | -9/Exiles Mutant | -8/Mines Mutant | -8/Materials Resources | -11 -10 -10 -9 -9 -9 -8 -8 ----------- Run | Jun Mat Min Mat Min Exi Min Mat Matter Collected 1995 | 224 288 17 704 26 . 69 667 Remotely . | . . . . . . . . Salvage Created 3478 | . 457 . 1160 45 . 74 1742 Parts 224 | . 32 . 81 5 . 8 98 Haulers Intercepted 1 | . . . 1 . . . . Recyclers Shooed 2 | . 1 . . . . . 1 Parts Field Recycled . | . . . . . . . . Retrieved Matter . | . . . . . . . . Parts Self-Destructed . | . . . . . . . . Prevented . | . . . . . . . . Kills | -11 -10 -10 -9 -9 -9 -8 -8 ------- Run | Jun Mat Min Mat Min Exi Min Mat Combat Hostiles Destroyed 61 | . 10 . 22 3 . 1 25 Guns 51 | . 8 . 22 3 . 1 17 Cannons 3 | . . . . . . . 3 AOE 6 | . 2 . . . . . 4 Classes Destroyed 16 | . 6 . 5 . . 2 3 Worker 4 | . . . 2 . . . 2 Builder 5 | . 1 . . . . . 4 Tunneler 2 | . . . . . . 1 1 Hauler 1 | . . . 1 . . . . Recycler 6 | . 1 . . . . . 5 Mechanic 1 | . 1 . . . . . . Operator 4 | . . . 4 . . . . Watcher 10 | . 3 . 4 . . . 3 Swarmer 8 | . 3 . 2 3 . . . Grunt 34 | . 7 . 13 . . . 14 Brawler 1 | . . . 1 . . . . Duelist 1 | . . . . . . . 1 Sentry 9 | . . . 6 . . . 3 Specialist 6 | . . . . . . . 6 Hunter 1 | . . . . . . 1 . Heavy 1 | . . . . . . . 1 Best Kill Streak 14 | . 3 . 5 3 . 1 14 Combat Bots Only 5 | . 3 . 4 3 . 1 5 Max Kills in Single Turn 6 | . 2 . 1 1 . 1 6 Gunslinging . | . . . . . . . . Exploded 2 | . 2 . . . . . 1 Melee . | . . . . . . . . Uniques/NPCs Destroyed . | . . . . . . . . Combat | -11 -10 -10 -9 -9 -9 -8 -8 -------- Run | Jun Mat Min Mat Min Exi Min Mat Damage Taken 4593 | . 491 . 1209 81 . 48 2764 Core 637 | . 92 . 201 15 . . 329 Absorbed by Shields 708 | . . . . . . . 708 Redirected to Shielding 39 | . 39 . . . . . . Regen/Repaired (Parts) 599 | . 22 . 370 . . . 207 Core Remaining (%) 69 | 100 . 63 . . . 46 . Volleys Fired 230 | . 43 . 83 4 . 3 97 Largest 2 | . 2 . 2 2 . 2 2 Hottest 126 | . 60 . 46 46 . 68 126 Shots Fired 429 | . 84 . 162 7 . 8 168 Gun 414 | . 84 . 162 7 . 8 153 Cannon 15 | . . . . . . . 15 Launcher . | . . . . . . . . Special . | . . . . . . . . Kinetic 376 | . 61 . 162 7 . 4 142 Thermal 26 | . . . . . . . 26 Explosive . | . . . . . . . . Electromagnetic 27 | . 23 . . . . 4 . Robot Hit Streak 37 | . 6 . 37 4 . 14 16 Robot Miss Streak 7 | . 4 . 7 2 . . 4 Penetration Max . | . . . . . . . . Secondary Targets 4 | . . . 1 1 . . 2 Max Gunslinging Chain 1 | . . . 1 1 . . 1 Shots Hit Robots 298 | . 48 . 119 4 . 6 121 Core Hits 144 | . 25 . 47 3 . 4 65 Critical Kills 2 | . . . 1 . . . 1 Critical Parts Destroyed 1 | . . . . . . . 1 Critical Strikes 4 | . . . 1 . . . 3 Burn 1 | . . . . . . . 1 Destroy 2 | . . . 1 . . . 1 Smash 1 | . . . . . . . 1 Melee Attacks 4 | . . . . . . . 4 Impact 4 | . . . . . . . 4 Slashing . | . . . . . . . . Piercing . | . . . . . . . . Sneak Attacks . | . . . . . . . . Combat Hostiles . | . . . . . . . . Follow-up Attacks . | . . . . . . . . Damage Inflicted 6488 | . 685 . 1809 70 . 115 3809 Guns 4329 | . 592 . 1781 70 . 100 1786 Cannons 403 | . . . . . . . 403 Explosions 1599 | . 78 . . . . . 1521 Melee 47 | . . . . . . . 47 Ramming 110 | . 15 . 28 . . 15 52 Kinetic 3856 | . 351 . 1781 70 . 18 1636 Thermal 2152 | . 78 . . . . . 2074 Explosive . | . . . . . . . . Electromagnetic 323 | . 241 . . . . 82 . Impact 47 | . . . . . . . 47 Slashing . | . . . . . . . . Piercing . | . . . . . . . . Highest Corruption 10 | . . . 5 5 5 5 10 Average Corruption 5 | . . . 5 5 5 5 10 Corruption Purged . | . . . . . . . . Corruption Blocked . | . . . . . . . . Effects 72 | . . . 29 12 10 16 5 Message Errors 16 | . . . 6 2 2 5 1 Matter Fused 17 | . . . 6 4 2 2 3 Heat Flow Errors 10 | . . . 6 2 1 . 1 Energy Discharges 6 | . . . 2 1 1 2 . Parts Fused 1 | . . . . . 1 . . Data Loss (minor) 11 | . . . 4 1 2 4 . Data Loss (major) 2 | . . . 1 . . 1 . Misfires 4 | . . . 2 . . 2 . Alerts 2 | . . . . 1 1 . . Weapon Failures 3 | . . . 2 1 . . . Overload Shots . | . . . . . . . . Overflow Damage 167 | . . . . . . . 167 Projectiles 9 | . . . . . . . 9 Explosions 111 | . . . . . . . 111 Melee 47 | . . . . . . . 47 Knockbacks 1 | . . . . . . . 1 Impact 1 | . . . . . . . 1 Kinetic . | . . . . . . . . Secondary . | . . . . . . . . Self-Inflicted Damage 361 | . 57 . . . . . 304 Shots 7 | . 2 . . . . . 5 Rammed 20 | . 4 . 5 . . 1 10 Targets Rammed 26 | . 6 . 7 . . 1 12 Kicked . | . . . . . . . . Crushed 6 | . 2 . 2 . . . 2 Highest Temperature 517 | . 87 . 270 153 197 45 517 Average Temperature 84 | . 31 . 56 71 101 21 102 Received Heat Transfer 1536 | . 234 . 492 . . . 810 Effects 17 | . . . . . . . 17 Shutdowns 4 | . . . . . . . 4 Energy Bleed 1 | . . . . . . . 1 Interference 1 | . . . . . . . 1 Short Circuit 1 | . . . . . . . 1 Damage (minor) 1 | . . . . . . . 1 Damage (major) 8 | . . . . . . . 8 Damage (core) 1 | . . . . . . . 1 Siege Activations . | . . . . . . . . Robots Corrupted . | . . . . . . . . Combat Hostiles . | . . . . . . . . Parts Fried 4 | . 3 . . . . 1 . Impact Corruptions 1 | . . . . . . . 1 Robots Melted . | . . . . . . . . Combat Hostiles . | . . . . . . . . Parts Melted 4 | . . . . . . . 4 Heat Transferred 2480 | . 150 . . . . . 2330 Parts Sabotaged . | . . . . . . . . Parts Stolen . | . . . . . . . . Parts Stripped . | . . . . . . . . Power Chain Reactions 2 | . 2 . . . . . . Missiles Intercepted . | . . . . . . . . Alert | -11 -10 -10 -9 -9 -9 -8 -8 ------- Run | Jun Mat Min Mat Min Exi Min Mat Peak Influence 549 | . 150 4 196 139 . 50 549 Initial 69 | . . . 1 69 . . . Average 102 | . 35 2 95 137 . 28 173 Maximum Alert Level 2 | . . . . . . . 2 Low Security (%) 92 | 100 100 100 100 100 . 100 76 Level 1 1 | . . . . . . . 5 Level 2 6 | . . . . . . . 18 Level 3 . | . . . . . . . . Level 4 . | . . . . . . . . Level 5 . | . . . . . . . . High Security . | . . . . . . . . Max Security . | . . . . . . . . Squads Dispatched 14 | . 2 . 6 . . . 6 Investigation 5 | . 1 . 3 . . . 1 Extermination . | . . . . . . . . Reinforcement 8 | . 1 . 3 . . . 4 Assault 1 | . . . . . . . 1 Garrison . | . . . . . . . . Intercept . | . . . . . . . . Searches Triggered . | . . . . . . . . Construction Impeded . | . . . . . . . . Haulers Reinforced . | . . . . . . . . Active Scanning Responses . | . . . . . . . . Cargo Convoy Interrupts . | . . . . . . . . Stealth | -11 -10 -10 -9 -9 -9 -8 -8 --------- Run | Jun Mat Min Mat Min Exi Min Mat Distress Signals 7 | . 1 . 3 . . . 3 Communications Jammed . | . . . . . . . . Distress Signals . | . . . . . . . . Times Spotted 103 | . 17 . 35 4 . 1 46 Peak Tracking Total 5 | . 4 . 5 4 . 1 5 Tactical Retreats 4 | . . . . . . . 4 Traps | -11 -10 -10 -9 -9 -9 -8 -8 ------- Run | Jun Mat Min Mat Min Exi Min Mat Traps Triggered 2 | . 1 . 1 . . . . Indirectly . | . . . . . . . . Trap Hack Attempts . | . . . . . . . . Triggered . | . . . . . . . . Disarmed . | . . . . . . . . Reprogrammed . | . . . . . . . . Reused . | . . . . . . . . Traps Extracted . | . . . . . . . . Installed . | . . . . . . . . Triggered . | . . . . . . . . Machines | -11 -10 -10 -9 -9 -9 -8 -8 ---------- Run | Jun Mat Min Mat Min Exi Min Mat Machines Disabled 9 | . . . 2 . . . 7 Max in Single Turn 3 | . . . 1 . . . 3 Machines Repaired . | . . . . . . . . Machines Sabotaged . | . . . . . . . . Overloaded Fab Kills . | . . . . . . . . Hacking | -11 -10 -10 -9 -9 -9 -8 -8 --------- Run | Jun Mat Min Mat Min Exi Min Mat Machines Accessed 22 | . 5 2 7 . 1 . 7 Terminals 15 | . 4 2 5 . . . 4 Fabricators . | . . . . . . . . Repair Stations 5 | . 1 . 2 . . . 2 Recycling Units . | . . . . . . . . Scanalyzers 1 | . . . . . . . 1 Garrison Access . | . . . . . . . . Total Hacks 57 | . 11 4 24 . 1 . 17 Successful 33 | . 6 2 12 . 1 . 12 Failed 24 | . 5 2 12 . . . 5 Catastrophic 2 | . 1 . . . . . 1 Database Lockouts . | . . . . . . . . Manual 26 | . 9 . 9 . 1 . 7 Terminals 35 | . 9 4 13 . . . 9 Fabricators . | . . . . . . . . Repair Stations 19 | . 2 . 11 . . . 6 Recycling Units . | . . . . . . . . Scanalyzers 2 | . . . . . . . 2 Garrison Access . | . . . . . . . . Terminal Hacks 10 | . . 2 4 . 1 . 3 Prototype ID Bank 1 | . . . . . . . 1 Repair Station Index 2 | . . . 1 . . . 1 Alert Level 1 | . . . 1 . . . . Locate Traps 1 | . . . 1 . . . . Dispatch Records 1 | . . 1 . . . . . Zone Layout 3 | . . 1 1 . . . 1 EX-Prototype ID Bank 1 | . . . . . 1 . . Fabricator Hacks . | . . . . . . . . Repair Station Hacks 14 | . 2 . 6 . . . 6 Scan Component 7 | . 1 . 3 . . . 3 Repair 7 | . 1 . 3 . . . 3 Recycling Unit Hacks . | . . . . . . . . Scanalyzer . | . . . . . . . . Garrison Access Hacks . | . . . . . . . . Unauthorized Hacks 9 | . 4 . 2 . . . 3 Terminals 9 | . 4 . 2 . . . 3 Assimilate 1 | . . . . . . . 1 Botnet 8 | . 4 . 2 . . . 2 Fabricators . | . . . . . . . . Repair Stations . | . . . . . . . . Recycling Units . | . . . . . . . . Scanalyzers . | . . . . . . . . Garrison Access . | . . . . . . . . Data Cores Recovered . | . . . . . . . . Used . | . . . . . . . . Hacking Detections 13 | . 1 2 5 . . . 5 Full Trace Events 4 | . . . 3 . . . 1 Feedback Events . | . . . . . . . . Feedback Blocked . | . . . . . . . . Robot Schematics Acquired . | . . . . . . . . Robots Built . | . . . . . . . . Authchips . | . . . . . . . . Time . | . . . . . . . . Total Robot Build Rating . | . . . . . . . . Part Schematics Acquired . | . . . . . . . . Parts Built . | . . . . . . . . Authchips . | . . . . . . . . Time . | . . . . . . . . Total Part Build Rating . | . . . . . . . . Parts Repaired 6 | . 1 . 3 . . . 2 Time 281 | . 26 . 134 . . . 121 Parts Recycled . | . . . . . . . . Recycled Matter . | . . . . . . . . Retrieved Matter . | . . . . . . . . Retrieved Components . | . . . . . . . . Parts Scanalyzed . | . . . . . . . . Part Schematics Acquired . | . . . . . . . . Parts Damaged . | . . . . . . . . Bothacking | -11 -10 -10 -9 -9 -9 -8 -8 ------------ Run | Jun Mat Min Mat Min Exi Min Mat Used RIF Installer . | . . . . . . . . Robots Hacked . | . . . . . . . . Non-combat . | . . . . . . . . Combat . | . . . . . . . . Robot Hacks Applied . | . . . . . . . . Relay Couplers Released . | . . . . . . . . Fabnet Peak Effective % . | . . . . . . . . Robots Rewired . | . . . . . . . . Allies Hacked . | . . . . . . . . Hacks Repelled . | . . . . . . . . Allies | -11 -10 -10 -9 -9 -9 -8 -8 -------- Run | Jun Mat Min Mat Min Exi Min Mat Total Allies 1 | . . . . . . . 1 Largest Group 1 | . . . . . . . 1 Highest-Rated Group 10 | . . . . . . . 10 Highest-Rated Ally 10 | . . . . . . . 10 Total Orders . | . . . . . . . . Ally Attacks . | . . . . . . . . Total Damage . | . . . . . . . . Kills . | . . . . . . . . Allies Corrupted . | . . . . . . . . Allies Melted . | . . . . . . . . Intel | -11 -10 -10 -9 -9 -9 -8 -8 ------- Run | Jun Mat Min Mat Min Exi Min Mat Robot Analysis Total . | . . . . . . . . Derelict Logs Recovered . | . . . . . . . . Drone Launches . | . . . . . . . . Drone Recoveries . | . . . . . . . . Exploration | -11 -10 -10 -9 -9 -9 -8 -8 ------------- Run | Jun Mat Min Mat Min Exi Min Mat Turns Passed 8949 | 72 1660 323 2686 376 348 633 2851 Spaces Moved 4475 | 40 891 258 1404 227 217 365 1073 Core 4 | 3 . . 1 . . . . Treads 4063 | 37 834 . 1310 227 217 365 1073 Legs . | . . . . . . . . Wheels 408 | . 57 258 93 . . . . Hover . | . . . . . . . . Flight . | . . . . . . . . Fastest Speed 50 | 50 125 125 125 160 160 160 160 Average Speed 160 | 151 161 125 157 160 160 160 171 Slowest Speed 550 | 160 240 125 550 160 160 160 250 Overloaded Moves . | . . . . . . . . Propulsion Burnouts . | . . . . . . . . Robots Hopped . | . . . . . . . . Cave-ins Triggered . | . . . . . . . . Exploration Rate (%) 58 | 4 99 43 88 54 60 72 46 Regions Visited 7 Branch Regions 4 Pre-discovered Areas . | . . . . . . . . Known Exits Taken 3 | . 1 1 1 . . . . Unknown Exits Taken 4 | 1 . . . 1 1 1 . Scrap Searched 4 | . . 1 . 1 . 2 . Spaces Dug 2 | . . . . . . . 2 Terrain Destroyed 152 | . 9 . . . . . 143 Melee 2 | . . . . . . . 2 Projectile 6 | . . . . . . . 6 AOE 144 | . 9 . . . . . 135 Terrain Rammed . | . . . . . . . . Walls Destroyed . | . . . . . . . . Machines Disabled . | . . . . . . . . Actions | -11 -10 -10 -9 -9 -9 -8 -8 --------- Run | Jun Mat Min Mat Min Exi Min Mat Total 5755 | 48 1027 258 1709 232 219 408 1854 Wait 885 | . 65 . 166 . . 38 616 Move 4468 | 39 890 257 1403 226 216 364 1073 Hop . | . . . . . . . . Pick Up 25 | 2 3 1 12 . 1 1 5 Fast Attach 27 | 6 8 . 5 1 . . 7 Attach 15 | . 1 . 2 . . . 12 Detach 12 | . 5 . 2 . . . 5 Swap 31 | 1 3 . 13 . . . 14 Drop 32 | . 3 . 16 1 2 1 9 Fire 230 | . 43 . 83 4 . 3 97 Melee 4 | . . . . . . . 4 Ram . | . . . . . . . . Kick . | . . . . . . . . Crush 26 | . 6 . 7 . . 1 12 Escape Stasis . | . . . . . . . . Rewire . | . . . . . . . . Trap . | . . . . . . . . Miscellaneous . | . . . . . . . . Route ------- -11/Junkyard -10/Materials (discovered 4 exits: *Mat x3 / *Min) -10/Mines -9/Materials (discovered 5 exits: *Mat x3 / *Min x2) -9/Mines (discovered 2 exits: *Mat / *Exi) -9/Exiles -8/Mines -8/Materials (discovered 3 exits: [*Fac] / [*Sto x2]) History --------- Turn | Location | Event 8 | -11/Junkyard | Discovered new exit (range 14) 73 | -11/Junkyard | Entered Materials 314 | -10/Materials | Build established: Mutant 374 | -10/Materials | Discovered new exit (range 15) 632 | -10/Materials | Identified exit to Materials 718 | -10/Materials | Discovered new exit (range 11) 738 | -10/Materials | Identified exit to Mines 997 | -10/Materials | Discovered exit to Materials (range 8) 1224 | -10/Materials | Discovered exit to Materials (range 16) 1511 | -10/Materials | Repaired Lgt. Treads 1733 | -10/Materials | Entered Mines 1767 | -10/Mines | Discovered exit to Materials (range 7) 1798 | -10/Mines | Found a hidden stash of uninstalled traps 1894 | -10/Mines | Assembled infested the area 1899 | -10/Mines | Assisted by a Guerilla fighting off Assembled 2056 | -10/Mines | Entered Materials 2056 | -9/Materials | Evolved 2 slots: Utility x2 2467 | -9/Materials | Discovered new exit (range 11) 2505 | -9/Materials | Discovered new exit (range 13) 2572 | -9/Materials | Build established: Scavenger-Mutant 2905 | -9/Materials | Build established: Mutant 3054 | -9/Materials | Discovered new exit (range 5) 3189 | -9/Materials | Repaired Imp. Assault Rifle 3459 | -9/Materials | Discovered new exit (range 11) 3631 | -9/Materials | Discovered new exit (range 12) 3654 | -9/Materials | Identified exit to Mines 3933 | -9/Materials | Core integrity fell below 50% 4571 | -9/Materials | Repaired Imp. Assault Rifle 4605 | -9/Materials | Repaired Imp. Treads 4742 | -9/Materials | Entered Mines 5044 | -9/Mines | Discovered new exit (range 8) 5110 | -9/Mines | Deemed a non-threat by the Exiles lab entrance 5112 | -9/Mines | Discovered new exit (range 5) 5118 | -9/Mines | Entered Exiles 5160 | -9/Exiles | Met 8R-AWN 5187 | -9/Exiles | Met EX-HEX 5235 | -9/Exiles | Met EX-BIN 5258 | -9/Exiles | Aligned with FarCom system 5259 | -9/Exiles | Given EX-Vault access code 5296 | -9/Exiles | Opened EX-Vault 5310 | -9/Exiles | Found YOLO Cannon 5344 | -9/Exiles | Warned to stay clear of 0b10 Research branches 5392 | -9/Exiles | Met EX-DEC 5445 | -9/Exiles | Discovered new exit (range 14) 5466 | -9/Exiles | Left Exiles lab with YOLO Cannon 5466 | -9/Exiles | Entered Mines 6088 | -8/Mines | Discovered new exit (range 8) 6099 | -8/Mines | Entered Materials 6099 | -8/Materials | Evolved 2 slots: Power x1, Propulsion x1 6165 | -8/Materials | Discovered new exit (range 11) 7121 | -8/Materials | Discovered new exit (range 7) 7525 | -8/Materials | Repaired Shield Generator 7565 | -8/Materials | Repaired Hrd. Medium Armor Plating 8415 | -8/Materials | Lost 3 parts (1p1n1w) 8610 | -8/Materials | Discovered new exit (range 7) 8616 | -8/Materials | Core integrity fell below 50% 8646 | -8/Materials | Lost 4 parts (1p1n1u1w) 8819 | -8/Materials | System corruption reached 10% 8899 | -8/Materials | First assault squad dispatched 8915 | -8/Materials | Build established: Scavenger-Mutant 8923 | -8/Materials | Core integrity fell below 20% 8950 | -8/Materials | Self-destructed Last Messages --------------- 08923_ Overheating: Core damaged (-93). 08924_ Lgt. Treads destroyed. 08924_ Slammed into G-47 Trooper. 08926_ Arm. Treads broken. 08926_ Overheating: Short circuit. 08927_ Slammed into G-47 Trooper. 08929_ Power failure, Deuterium Engine shutdown. 08931_ Slammed into G-47 Trooper. 08934_ 4/QL